fUSD/lending_fUSD_20260630
["ID","MTS","AMOUNT","RATE_DAILY","PERIOD"]
[426759102,1782784240000,-299.365,0.00011357,2]
[426759200,1782784240000,-1902.52,0.00012174,2]
[426759154,1782784240000,-150.99,0.0001136,2]
[426759204,1782784240000,-3086.13,0.00012289,2]
[426759217,1782784240000,-182.48,0.00012599,2]
[426759198,1782784240000,-1092.98098154,0.00012144,7]
[426759260,1782784240000,-347.51444905,0.00013454,2]
[426759215,1782784240000,-1092.98098154,0.00012593,7]
[426759252,1782784240000,-152.0,0.00013197,2]
[426759256,1782784240000,-542.7636,0.00013364,2]
[426759264,1782784240000,-1332366.73956464,0.00013464,2]
[426759258,1782784240000,-887.0,0.00013425,2]
[426759250,1782784240000,-216.58458871,0.00013193,2]
[426759262,1782784240000,-898.0,0.00013458,2]
[426759248,1782784240000,-182.48,0.00013172,2]
[426759247,1782784240000,-898.0,0.00013163,2]
[426759246,1782784240000,-917.0,0.00013047,2]
[426759243,1782784240000,-1013.27,0.00013016,2]
[426759236,1782784240000,-151.0,0.00012969,2]
[426759224,1782784240000,-151.0,0.00012903,2]
[426759253,1782784240000,-890.0,0.00013347,2]
[426759240,1782784240000,-884.0,0.00012979,2]
[426759206,1782784240000,-285.81,0.00012329,2]
[426759219,1782784240000,-1902.52,0.00012754,2]
[426759221,1782784240000,-301.26704643,0.00012903,2]
[426759208,1782784240000,-1902.52,0.00012464,2]
[426759213,1782784240000,-256.62,0.00012592,2]
[426759211,1782784240000,-433.0,0.00012555,2]
[426759196,1782784240000,-10970.54,0.00012037,2]
[426759226,1782784240000,-150.0,0.00012917,2]
[426759228,1782784240000,-151.0,0.00012917,2]
[426759238,1782784240000,-1965.64605212,0.00012973,2]
[426759233,1782784240000,-204.68084532,0.00012969,2]
[426759245,1782784240000,-912.0,0.00013047,2]
[426759202,1782784240000,-162.09,0.00012247,2]
[426759235,1782784240000,-151.0,0.00012969,2]
[426759511,1782784242000,-1258.29738534,0.00013464,2]
[426759664,1782784243000,-38422.8798183,0.00013464,2]
[426759662,1782784243000,-110.19573343,0.00013464,2]
[426759984,1782784246000,-46648.12253892,0.00013464,2]
[426759914,1782784246000,-5727.82342435,0.00013464,2]
[426760431,1782784349000,1148.74526733,0.00010558,2]
[426760438,1782784570000,-975.93576167,0.00010504,2]
[426760439,1782784578000,752.49845009,9.758e-05,2]
[426760440,1782784579000,517.73378538,9.757e-05,2]
[426760441,1782784623000,-1148.745267,0.00010477,2]
[426760448,1782784676000,-250.0,0.0001053,2]
[426760450,1782784706000,-500.0,0.00010556,2]
[426760449,1782784706000,-164.7067138,0.00010556,2]
[426760452,1782784706000,-500.0,0.00010556,2]
[426760451,1782784706000,-500.0,0.00010556,2]
[426760454,1782784706000,-368.521861,0.00010556,2]
[426760456,1782784706000,-500.0,0.00010556,2]
[426760455,1782784706000,-500.0,0.00010556,2]
[426760458,1782784706000,-500.0,0.00010556,2]
[426760457,1782784706000,-500.0,0.00010556,2]
[426760459,1782784706000,-466.7714252,0.00010556,2]
[426760453,1782784706000,-500.0,0.00010556,2]
[426760460,1782784708000,-615.75218175,0.00010456,2]
[426760463,1782784708000,-500.0,0.00010556,2]
[426760462,1782784708000,-500.0,0.00010556,2]
[426760464,1782784708000,-500.0,0.00010556,2]
[426760461,1782784708000,-33.2285748,0.00010556,2]
[426760466,1782784708000,-500.0,0.00010556,2]
[426760467,1782784708000,-500.0,0.00010556,2]
[426760468,1782784708000,-500.0,0.00010556,2]
[426760469,1782784708000,-500.0,0.00010556,2]
[426760470,1782784708000,-351.01924345,0.00010556,2]
[426760465,1782784708000,-500.0,0.00010556,2]
[426760471,1782784712000,-148.98075655,0.00010556,2]
[426760472,1782784712000,-160.0,0.00010556,2]
[426760474,1782784712000,-218.99207007,0.00010557,2]
[426760476,1782784712000,-500.0,0.00010557,2]
[426760475,1782784712000,-500.0,0.00010557,2]
[426760477,1782784712000,-409.62797484,0.00010557,2]
[426760473,1782784712000,-250.0,0.00010557,2]
[426760480,1782784712000,-500.0,0.00010557,2]
[426760479,1782784712000,-500.0,0.00010557,2]
[426760481,1782784712000,-500.0,0.00010557,2]
[426760483,1782784712000,-337.47806778,0.00010557,2]
[426760484,1782784712000,-82.82318464,0.00010557,2]
[426760482,1782784712000,-500.0,0.00010557,2]
[426760478,1782784712000,-392.09794612,0.00010557,2]
[426760485,1782784717000,-417.17681536,0.00010557,2]
[426760487,1782784717000,-294.72615931,0.00010557,2]
[426760486,1782784717000,-500.0,0.00010557,2]
[426760488,1782784717000,-500.0,0.00010557,2]
[426760489,1782784717000,-378.04253433,0.00010557,2]
[426760490,1782784717000,-500.0,0.00010557,2]
[426760492,1782784717000,-180.0,0.00010558,2]
[426760493,1782784717000,-540.0,0.00010558,2]
[426760494,1782784717000,-450.0,0.00010558,2]
[426760495,1782784717000,-540.0,0.00010558,2]
[426760496,1782784717000,-340.054491,0.00010558,2]
[426760491,1782784717000,-360.0,0.00010558,2]
[426760499,1782784730000,-540.0,0.00010558,2]
[426760497,1782784730000,-199.945509,0.00010558,2]
[426760500,1782784730000,-422.0,0.00010558,2]
[426760498,1782784730000,-540.0,0.00010558,2]
[426760501,1782784730000,-304.0,0.00010558,2]
[426760502,1782784730000,-444.0,0.00010558,2]
[426760503,1782784730000,-2750.0,0.00010558,2]
[426760504,1782784730000,-5000.0,0.00010558,2]
[426760505,1782784735000,-5000.0,0.00010558,2]
[426760506,1782784736000,-5000.0,0.00010558,2]
[426760507,1782784737000,-5000.0,0.00010558,2]
[426760508,1782784738000,-5000.0,0.00010558,2]
[426760509,1782784739000,-5000.0,0.00010558,2]
[426760510,1782784740000,-5000.0,0.00010558,2]
[426760511,1782784744000,-5000.0,0.00010558,2]
[426760513,1782784745000,-5000.0,0.00010558,2]
[426760512,1782784745000,-5000.0,0.00010558,2]
[426760514,1782784746000,-5000.0,0.00010558,2]
[426760515,1782784747000,-5000.0,0.00010558,2]
[426760516,1782784748000,-5000.0,0.00010558,2]
[426760517,1782784749000,-5000.0,0.00010558,2]
[426760518,1782784750000,-5000.0,0.00010558,2]
[426760519,1782784758000,-3138.95613267,0.00010558,2]
[426760520,1782784758000,-1861.04386733,0.00011221,2]
[426760522,1782784759000,-25.61636733,0.00011321,2]
[426760521,1782784759000,-4974.38363267,0.00011221,2]
[426760523,1782784765000,-782.04958667,0.00011321,2]
[426760524,1782784875000,-274.46856228,0.00010557,2]
[426760525,1782784889000,-4725.53143772,0.00011546,2]
[426760529,1782784899000,-250.0,0.00011554,2]
[426760527,1782784899000,-251.6748145,0.00011546,2]
[426760528,1782784899000,-241.04639892,0.0001155,2]
[426760526,1782784899000,-3089.66898707,0.00011546,2]
[426760530,1782784901000,151.0,0.00011554,2]
[426760533,1782784907000,-16.60979951,0.00011611,2]
[426760532,1782784907000,-500.0,0.00011611,2]
[426760531,1782784907000,-500.0,0.00011611,2]
[426760534,1782784911000,-483.39020049,0.00011611,2]
[426760538,1782784911000,-500.0,0.00011611,2]
[426760535,1782784911000,-500.0,0.00011611,2]
[426760537,1782784911000,-500.0,0.00011611,2]
[426760536,1782784911000,-500.0,0.00011611,2]
[426760540,1782784911000,-500.0,0.00011611,2]
[426760544,1782784911000,-16.60979951,0.00011611,2]
[426760542,1782784911000,-500.0,0.00011611,2]
[426760539,1782784911000,-500.0,0.00011611,2]
[426760541,1782784911000,-500.0,0.00011611,2]
[426760543,1782784911000,-500.0,0.00011611,2]
[426760555,1782784912000,-273.04623374,0.00011611,2]
[426760554,1782784912000,-500.0,0.00011611,2]
[426760552,1782784912000,-500.0,0.00011611,2]
[426760550,1782784912000,-500.0,0.00011611,2]
[426760551,1782784912000,-500.0,0.00011611,2]
[426760548,1782784912000,-500.0,0.00011611,2]
[426760546,1782784912000,-483.39020049,0.00011611,2]
[426760547,1782784912000,-500.0,0.00011611,2]
[426760545,1782784912000,-150.0,0.00011611,2]
[426760553,1782784912000,-500.0,0.00011611,2]
[426760549,1782784912000,-150.8547199,0.00011611,2]
[426760556,1782784913000,-442.70884587,0.00011611,2]
[426760557,1782784927000,-810.543071,0.0002,120]
[426760558,1782784959000,680.85832,0.0002,120]
[426760559,1782785034000,437.19239261,0.00010505,7]
[426760560,1782785035000,437.19239261,0.00010715,7]
[426760561,1782785036000,437.19239261,0.0001103,7]
[426760562,1782785036000,437.19239261,0.00011346,7]
[426760563,1782785037000,437.19239263,0.00011766,7]
[426760566,1782785094000,11605.98,9.986e-05,2]
[426760565,1782785094000,-3058.74,0.00010243,2]
[426760567,1782785147000,-200.0,0.0001032,2]
[426760568,1782785201000,-154.89,0.0001,2]
[426760569,1782785231000,500.0,0.000117,4]
[426760570,1782785233000,1100.0,0.000118,4]
[426760571,1782785235000,1600.0,0.000119,4]
[426760572,1782785253000,-1799.82502744,0.00010439,2]
[426760573,1782785266000,-2467.70497256,0.00010439,2]
[426760574,1782785268000,571.920989,0.0002,120]
[426760578,1782785319000,-2610.55518399,0.00010484,2]
[426760576,1782785319000,-3978.99971392,0.00010461,2]
[426760577,1782785319000,-288.53028608,0.00010461,2]
[426760575,1782785319000,-150.0,0.00010459,2]
[426760579,1782785339000,-1656.97481601,0.00010484,2]
[426760580,1782785339000,-2459.58660159,0.00010499,2]
[426760581,1782785339000,-599.15339841,0.00010499,2]
[426760583,1782785339000,-3241.42120224,0.00010506,2]
[426760582,1782785339000,-163.88,0.00010506,2]
[426760586,1782785345000,-4184.26079624,0.00010529,2]
[426760585,1782785345000,-200.0,0.00010509,2]
[426760584,1782785345000,-1026.10879776,0.00010506,2]
[426760587,1782785372000,-482.09,0.00010114,2]
[426760588,1782785373000,-500.0,0.00010483,2]
[426760589,1782785373000,-500.0,0.00010483,2]
[426760590,1782785373000,-500.0,0.00010483,2]
[426760591,1782785373000,-500.0,0.00010483,2]
[426760593,1782785373000,-500.0,0.00010483,2]
[426760594,1782785373000,-500.0,0.00010483,2]
[426760595,1782785373000,-500.0,0.00010483,2]
[426760596,1782785373000,-278.98173797,0.00010483,2]
[426760592,1782785373000,-500.0,0.00010483,2]
[426760598,1782785373000,-500.0,0.00010483,2]
[426760599,1782785373000,-500.0,0.00010483,2]
[426760601,1782785373000,-500.0,0.00010483,2]
[426760600,1782785373000,-500.0,0.00010483,2]
[426760602,1782785373000,-433.7543604,0.00010483,2]
[426760604,1782785373000,-1540.93991178,0.00010551,2]
[426760603,1782785373000,-83.26920376,0.00010529,2]
[426760605,1782785373000,-168.88430078,0.00010551,2]
[426760597,1782785373000,-221.01826203,0.00010483,2]
[426760606,1782785389000,-3875.93,0.00010171,2]
[426760607,1782785389000,-577.5886935,0.00010551,2]
[426760609,1782785389000,-150.0,0.00010565,2]
[426760610,1782785389000,-477.65302375,0.00010573,2]
[426760608,1782785389000,-1980.11709394,0.00010551,2]
[426760611,1782785426000,-990.89,0.00010192,2]
[426760627,1782785431000,-3086.13,0.00010115,2]
[426760629,1782785431000,-780.99515459,0.00010279,2]
[426760628,1782785431000,-206.33,0.00010115,2]
[426760636,1782785431000,-105.07835273,0.00010617,2]
[426760631,1782785431000,-643.64853107,0.00010483,2]
[426760630,1782785431000,-43.41484541,0.00010279,2]
[426760632,1782785431000,-3789.87697625,0.00010573,2]
[426760633,1782785431000,-4267.53,0.00010596,2]
[426760635,1782785431000,-394.92164727,0.00010617,2]
[426760634,1782785431000,-500.0,0.00010617,2]
[426760644,1782785431000,-500.0,0.00010617,2]
[426760640,1782785431000,-214.62977403,0.00010617,2]
[426760645,1782785431000,-4267.53,0.00010618,2]
[426760646,1782785431000,-4267.53,0.00010641,2]
[426760647,1782785431000,-4267.53,0.00010663,2]
[426760643,1782785431000,-256.30831152,0.00010617,2]
[426760637,1782785431000,-500.0,0.00010617,2]
[426760642,1782785431000,-500.0,0.00010617,2]
[426760641,1782785431000,-286.73958239,0.00010617,2]
[426760639,1782785431000,-500.0,0.00010617,2]
[426760638,1782785431000,-500.0,0.00010617,2]
[426760648,1782785431000,-150.0,0.0001067,2]
[426760657,1782785432000,-4267.53,0.0001082,2]
[426760680,1782785432000,-4267.53,0.00011089,2]
[426760678,1782785432000,-4267.53,0.00011067,2]
[426760668,1782785432000,-166.66,0.00010988,2]
[426760667,1782785432000,-4267.53,0.00010977,2]
[426760665,1782785432000,-4267.53,0.00010932,2]
[426760666,1782785432000,-4267.53,0.00010955,2]
[426760664,1782785432000,-2950.99547502,0.0001091,2]
[426760661,1782785432000,-4267.53,0.00010865,2]
[426760659,1782785432000,-4267.53,0.00010843,2]
[426760654,1782785432000,-150.0,0.00010774,2]
[426760663,1782785432000,-1316.53452498,0.0001091,2]
[426760660,1782785432000,-2633.62240161,0.00010864,2]
[426760656,1782785432000,-4267.53,0.00010798,2]
[426760655,1782785432000,-4267.53,0.00010775,2]
[426760669,1782785432000,-717.16891146,0.00011,2]
[426760649,1782785432000,-4267.53,0.00010686,2]
[426760650,1782785432000,-4267.53,0.00010708,2]
[426760652,1782785432000,-4267.53,0.00010753,2]
[426760653,1782785432000,-3058.74,0.00010755,2]
[426760651,1782785432000,-4267.53,0.0001073,2]
[426760658,1782785432000,-154.89,0.00010834,2]
[426760676,1782785432000,-4267.53,0.00011044,2]
[426760662,1782785432000,-4267.53,0.00010887,2]
[426760670,1782785432000,-3550.36108854,0.00011,2]
[426760702,1782785432000,-2632.88089172,0.00011403,2]
[426760700,1782785432000,-697.5944144,0.00011381,2]
[426760697,1782785432000,-4267.53,0.00011336,2]
[426760699,1782785432000,-1462.0307434,0.00011381,2]
[426760698,1782785432000,-4267.53,0.00011358,2]
[426760696,1782785432000,-4267.53,0.00011314,2]
[426760695,1782785432000,-250.0,0.00011307,2]
[426760694,1782785432000,-4267.53,0.00011291,2]
[426760693,1782785432000,-4267.53,0.00011269,2]
[426760689,1782785432000,-4267.53,0.00011224,2]
[426760690,1782785432000,-2500.0,0.00011236,2]
[426760692,1782785432000,-3058.74,0.00011267,2]
[426760701,1782785432000,-2107.9048422,0.00011381,2]
[426760691,1782785432000,-4267.53,0.00011246,2]
[426760687,1782785432000,-4267.53,0.00011201,2]
[426760686,1782785432000,-3130.67819295,0.00011179,2]
[426760685,1782785432000,-1136.85180705,0.00011179,2]
[426760684,1782785432000,-4267.53,0.00011157,2]
[426760683,1782785432000,-4267.53,0.00011134,2]
[426760682,1782785432000,-4267.53,0.00011112,2]
[426760674,1782785432000,-4267.53,0.00011022,2]
[426760688,1782785432000,-166.66,0.0001122,2]
[426760672,1782785432000,-3058.74,0.00011011,2]
[426760709,1782785437000,-1148.74526733,0.00010914,2]
[426760711,1782785437000,-119.2045248,0.00010914,2]
[426760710,1782785437000,-1680.62050264,0.00010914,2]
[426760713,1782785438000,-261.89702736,0.00010914,2]
[426760712,1782785438000,-1384.84178834,0.00010914,2]
[426760729,1782785450000,-428.61870226,0.00010914,2]
[426760751,1782785451000,-154.89,0.00011667,2]
[426760752,1782785451000,-166.66,0.00011682,2]
[426760745,1782785451000,-4267.53,0.00011515,2]
[426760750,1782785451000,-152.0,0.00011611,2]
[426760744,1782785451000,-4267.53,0.00011493,2]
[426760746,1782785451000,-4267.53,0.00011538,2]
[426760749,1782785451000,-151.0,0.00011611,2]
[426760748,1782785451000,-151.0,0.00011611,2]
[426760747,1782785451000,-250.0,0.00011557,2]
[426760742,1782785451000,-4267.53,0.00011471,2]
[426760743,1782785451000,-345.72755998,0.00011483,2]
[426760741,1782785451000,-151.0,0.00011454,2]
[426760736,1782785451000,-166.66,0.00011451,2]
[426760735,1782785451000,-4267.53,0.00011448,2]
[426760738,1782785451000,-150.0,0.00011454,2]
[426760737,1782785451000,-500.0,0.00011454,2]
[426760753,1782785451000,-268.62890561,0.00011736,2]
[426760739,1782785451000,-153.0,0.00011454,2]
[426760734,1782785451000,-4267.53,0.00011426,2]
[426760733,1782785451000,-1634.64910828,0.00011403,2]
[426760732,1782785451000,-1626.70630477,0.00010914,2]
[426760730,1782785451000,-1.24832564,0.00010914,2]
[426760731,1782785451000,-1156.13093084,0.00010914,2]
[426760740,1782785451000,-153.0,0.00011454,2]
[426760754,1782785451000,-160.0,0.00011781,2]
[426760777,1782785451000,-450.0,0.00012197,2]
[426760763,1782785451000,-1852.42,0.00012177,2]
[426760762,1782785451000,-166.66,0.00012145,2]
[426760780,1782785451000,-28832.66838057,0.00012197,2]
[426760779,1782785451000,-598.87,0.00012197,2]
[426760778,1782785451000,-1253099.22646781,0.00012197,2]
[426760776,1782785451000,-2000.0,0.00012197,2]
[426760775,1782785451000,-150.99,0.00012197,2]
[426760773,1782785451000,-9999.99,0.00012197,2]
[426760774,1782785451000,-6457.5,0.00012197,2]
[426760772,1782785451000,-554.9,0.00012197,2]
[426760771,1782785451000,-1348.76,0.00012197,2]
[426760769,1782785451000,-540.0,0.00012196,2]
[426760770,1782785451000,-33353.4229,0.00012197,2]
[426760781,1782785451000,-3661.55606373,0.00012197,2]
[426760767,1782785451000,-9999.99,0.00012196,2]
[426760768,1782785451000,-9999.99,0.00012196,2]
[426760761,1782785451000,-3062.40504486,0.00012097,2]
[426760764,1782785451000,-5263.279,0.00012177,2]
[426760755,1782785451000,-405.3,0.00011785,2]
[426760765,1782785451000,-156.297,0.00012177,2]
[426760760,1782785451000,-168.66256862,0.00012097,2]
[426760756,1782785451000,-1017.61,0.000118,2]
[426760757,1782785451000,-255.0,0.00011809,2]
[426760759,1782785451000,-150.0,0.00011963,2]
[426760766,1782785451000,-404.86231858,0.00012187,2]
[426760758,1782785451000,-166.66,0.00011914,2]
[426760784,1782785452000,-210829.51808964,0.00012197,2]
[426760783,1782785452000,-316.36684957,0.00012197,2]
[426760782,1782785452000,-466.09,0.00012197,2]
[426760785,1782785503000,-498.53613024,0.00010228,2]
[426760786,1782785577000,480.413631,0.0002,120]
[426760789,1782785667000,-250.0,0.00010671,2]
[426760787,1782785667000,-150.0,0.00010571,2]
[426760788,1782785667000,-233.762687,0.00010595,2]
[426760790,1782785667000,-150.0,0.00010705,2]
[426760794,1782785667000,-500.0,0.0001092,2]
[426760793,1782785667000,-250.0,0.0001091,2]
[426760792,1782785667000,-542.7636,0.00010832,2]
[426760795,1782785667000,-2193.913713,0.00011112,2]
[426760791,1782785667000,-729.56,0.00010819,2]
[426760802,1782785668000,-236.23464744,0.00011257,2]
[426760803,1782785668000,-500.0,0.00011257,2]
[426760804,1782785668000,-430.50657427,0.00011257,2]
[426760801,1782785668000,-500.0,0.00011257,2]
[426760800,1782785668000,-500.0,0.00011257,2]
[426760798,1782785668000,-277.1368588,0.00011257,2]
[426760799,1782785668000,-282.71866849,0.00011257,2]
[426760797,1782785668000,-1159.35,0.00011168,2]
[426760796,1782785668000,-1114.053251,0.00011112,2]
[426760806,1782785669000,-400.24084182,0.00011257,2]
[426760805,1782785669000,-69.49342573,0.00011257,2]
[426760807,1782785669000,-379.41581806,0.00011257,2]
[426760808,1782785669000,-4150.84991439,0.00011258,2]
[426760809,1782785670000,-5000.0,0.00011258,2]
[426760810,1782785671000,-5000.0,0.00011258,2]
[426760819,1782785672000,-182.73203356,0.00011396,2]
[426760818,1782785672000,-182.73203356,0.00011396,2]
[426760816,1782785672000,-182.73203356,0.00011396,2]
[426760817,1782785672000,-182.73203356,0.00011396,2]
[426760815,1782785672000,-1901.92642833,0.0001137,2]
[426760813,1782785672000,-1253.29234272,0.00011269,2]
[426760814,1782785672000,-598.07357167,0.0001137,2]
[426760812,1782785672000,-2000.0,0.00011258,2]
[426760811,1782785672000,-1148.63408561,0.00011258,2]
[426760823,1782785673000,-5000.0,0.00011483,2]
[426760822,1782785673000,-1358.50986121,0.00011483,2]
[426760821,1782785673000,-803.33557622,0.00011474,2]
[426760820,1782785673000,-205.3,0.00011441,2]
[426760825,1782785674000,-1358.51986121,0.00011483,2]
[426760824,1782785674000,-3641.48013879,0.00011483,2]
[426760826,1782785675000,-5000.0,0.00011483,2]
[426760829,1782785676000,-250.0,0.00011531,2]
[426760830,1782785676000,-1198.87986121,0.00011537,2]
[426760828,1782785676000,-360.0,0.00011483,2]
[426760827,1782785676000,-3191.12013879,0.00011483,2]
[426760832,1782785680000,-2161.23013879,0.00011537,2]
[426760833,1782785680000,-255.0,0.00011597,2]
[426760831,1782785680000,-5000.0,0.00011537,2]
[426760836,1782785810000,-335.0,0.00011256,2]
[426760839,1782785829000,-500.0,0.00011256,2]
[426760838,1782785829000,-500.0,0.00011256,2]
[426760837,1782785829000,-165.0,0.00011256,2]
[426760841,1782785829000,-500.0,0.00011256,2]
[426760842,1782785829000,-500.0,0.00011256,2]
[426760840,1782785829000,-500.0,0.00011256,2]
[426760847,1782785829000,-335.0,0.00011256,2]
[426760844,1782785829000,-500.0,0.00011256,2]
[426760845,1782785829000,-500.0,0.00011256,2]
[426760846,1782785829000,-500.0,0.00011256,2]
[426760843,1782785829000,-500.0,0.00011256,2]
[426760848,1782785830000,-165.0,0.00011256,2]
[426760850,1782785830000,-500.0,0.00011256,2]
[426760849,1782785830000,-500.0,0.00011256,2]
[426760852,1782785830000,-500.0,0.00011256,2]
[426760853,1782785830000,-500.0,0.00011256,2]
[426760854,1782785830000,-500.0,0.00011256,2]
[426760851,1782785830000,-500.0,0.00011256,2]
[426760857,1782785831000,-500.0,0.00011256,2]
[426760858,1782785831000,-335.0,0.00011256,2]
[426760856,1782785831000,-500.0,0.00011256,2]
[426760855,1782785831000,-500.0,0.00011256,2]
[426760862,1782785832000,-500.0,0.00011256,2]
[426760859,1782785832000,-165.0,0.00011256,2]
[426760861,1782785832000,-500.0,0.00011256,2]
[426760860,1782785832000,-500.0,0.00011256,2]
[426760863,1782785832000,-500.0,0.00011256,2]
[426760868,1782785832000,-500.0,0.00011256,2]
[426760865,1782785832000,-500.0,0.00011256,2]
[426760867,1782785832000,-500.0,0.00011256,2]
[426760866,1782785832000,-500.0,0.00011256,2]
[426760869,1782785832000,-335.0,0.00011256,2]
[426760864,1782785832000,-500.0,0.00011256,2]
[426760871,1782785833000,-500.0,0.00011256,2]
[426760877,1782785833000,-500.0,0.00011256,2]
[426760875,1782785833000,-500.0,0.00011256,2]
[426760872,1782785833000,-500.0,0.00011256,2]
[426760874,1782785833000,-500.0,0.00011256,2]
[426760876,1782785833000,-500.0,0.00011256,2]
[426760870,1782785833000,-165.0,0.00011256,2]
[426760878,1782785833000,-250.0,0.00011256,2]
[426760879,1782785833000,-215.06167204,0.00011256,2]
[426760885,1782785833000,-56.12700449,0.00011257,2]
[426760882,1782785833000,-153.0,0.00011256,2]
[426760873,1782785833000,-557.81132347,0.00011256,2]
[426760884,1782785833000,-151.0,0.00011257,2]
[426760880,1782785833000,-151.0,0.00011256,2]
[426760883,1782785833000,-150.0,0.00011257,2]
[426760881,1782785833000,-151.0,0.00011256,2]
[426760886,1782785887000,403.54745,0.0002,120]
[426760892,1782786058000,-151.0,0.00011157,2]
[426760891,1782786058000,-152.0,0.00011157,2]
[426760890,1782786058000,-151.0,0.00011157,2]
[426760889,1782786058000,-150.0,0.00011157,2]
[426760888,1782786058000,-500.0,0.00011157,2]
[426760893,1782786061000,150.0,0.00011157,2]
[426760894,1782786073000,304.83,0.00010694,2]
[426760898,1782786074000,304.83,0.00010803,2]
[426760897,1782786074000,-304.83,0.00010776,2]
[426760896,1782786074000,-304.83,0.00010749,2]
[426760899,1782786074000,151.117,0.00010831,2]
[426760895,1782786074000,-304.83,0.00010721,2]
[426760911,1782786077000,-150.0,0.00011256,2]
[426760909,1782786077000,-153.0,0.00011256,2]
[426760908,1782786077000,-150.26704643,0.00011256,2]
[426760906,1782786077000,-151.0,0.00011256,2]
[426760905,1782786077000,-150.0,0.00011256,2]
[426760904,1782786077000,-151.0,0.00011256,2]
[426760902,1782786077000,-304.83,0.00010886,2]
[426760901,1782786077000,-304.83,0.00010858,2]
[426760900,1782786077000,-153.713,0.00010831,2]
[426760912,1782786077000,-151.0,0.00011256,2]
[426760903,1782786077000,-304.83,0.00010913,2]
[426760910,1782786077000,-151.0,0.00011256,2]
[426760907,1782786077000,-151.0,0.00011256,2]
[426760915,1782786077000,-150.0,0.00011256,2]
[426760914,1782786077000,-151.0,0.00011256,2]
[426760917,1782786077000,-151.0,0.00011257,2]
[426760916,1782786077000,-94.87299551,0.00011257,2]
[426760919,1782786077000,-204.68084532,0.00011257,2]
[426760918,1782786077000,-150.0,0.00011257,2]
[426760921,1782786077000,-150.0,0.00011257,2]
[426760920,1782786077000,-151.0,0.00011257,2]
[426760922,1782786077000,-255.57233935,0.00011257,2]
[426760923,1782786077000,-156.27,0.00011321,2]
[426760925,1782786077000,-308.13377339,0.0001135,2]
[426760924,1782786077000,-500.0,0.0001135,2]
[426760913,1782786077000,-151.0,0.00011256,2]
[426760926,1782786078000,-304.83,0.00010941,2]
[426760927,1782786078000,-304.83,0.00010968,2]
[426760930,1782786078000,-311.97903594,0.0001135,2]
[426760929,1782786078000,-191.86622661,0.0001135,2]
[426760931,1782786078000,-3735.49473745,0.00011351,2]
[426760928,1782786078000,-151.0,0.00011256,2]
[426760933,1782786080000,-4695.17,0.00011351,2]
[426760932,1782786080000,-304.83,0.00010996,2]
[426760939,1782786092000,-304.83,0.00011133,2]
[426760935,1782786092000,-304.83,0.00011023,2]
[426760934,1782786092000,-168.69,0.00010962,2]
[426760937,1782786092000,-304.83,0.00011078,2]
[426760936,1782786092000,-304.83,0.00011051,2]
[426760938,1782786092000,-304.83,0.00011105,2]
[426760946,1782786092000,-304.83,0.00011325,2]
[426760940,1782786092000,-304.83,0.0001116,2]
[426760942,1782786092000,-304.83,0.00011215,2]
[426760944,1782786092000,-304.83,0.0001127,2]
[426760943,1782786092000,-304.83,0.00011243,2]
[426760945,1782786092000,-304.83,0.00011298,2]
[426760947,1782786092000,-1173.35,0.00011351,2]
[426760941,1782786092000,-304.83,0.00011188,2]